[Event "Prague Open 2024"]
[Site "Prague"]
[Date "2024.01.06"]
[Round "3.9"]
[White "Keller, Peter"]
[Black "Bezdek, Tomas"]
[Result "1/2-1/2"]
[ECO "C18"]
[WhiteElo "2289"]
[BlackElo "2022"]
[Annotator "RC"]
[PlyCount "141"]
[EventDate "2024.01.02"]
[EventType "swiss"]
[EventCountry "CZE"]
[SourceTitle "playchess.com"]
[Source "ChessBase"]
[SourceQuality "1"]
[TimeControl "40/5400+30:1800+30"]

1. e4 {[%emt 0:09:02]} e6 {[%emt 0:00:20]} 2. d4 {[%emt 0:00:06]} d5 {[%emt 0:00:07]} 3. Nc3 {[%emt 0:00:05]} Bb4 {[%emt 0:00:05]} 4. e5 {[%emt 0:00:44]} c5 {[%emt 0:00:08]} 5. a3 {[%emt 0:00:05]} Bxc3+ {[%emt 0:00:06]} 6. bxc3 {[%emt 0:00:04]} Ne7 {[%emt 0:00:06]} 7. Qg4 {[%emt 0:00:07]} Qc7 {[%emt 0:00:07]} 8. Bd3 {[%emt 0:00:06]} cxd4 {[%emt 0:07:07]} 9. Ne2 {[%emt 0:00:21]} dxc3 {[%emt 0:00:42]} 10. Qxg7 {[%emt 0:00:24]} Rg8 {[%emt 0:00:27]} 11. Qxh7 {[%emt 0:00:07]} Nbc6 {[%emt 0:02:09]} 12. Bf4 {[%emt 0:00:59]} Bd7 {[%emt 0:02:01]} 13. O-O {[%emt 0:00:06]} O-O-O {[%emt 0:00:23]} 14. Qxf7 {[%emt 0:00:28]} Rdf8 {[%emt 0:03:05]} 15. Qh5 {[%emt 0:00:32]} Nf5 {[%emt 0:07:17]} 16. Bxf5 {[%emt 0:17:55]} Rxf5 {[%emt 0:00:08]} 17. Qh7 {[%emt 0:01:20]} Qd8 {[%emt 0:01:11]} 18. Qh3 {[%emt 0:03:11]} Qf8 {[%emt 0:02:37]} 19. Bg3 {[%emt 0:09:30]} Rfg5 {[%emt 0:26:03]} 20. Qh4 {[%emt 0:04:59]} Rg4 {[%emt 0:00:09]} 21. Qf6 {[%emt 0:01:39]} Qc5 {[%emt 0:00:42]} 22. Rad1 {[%emt 0:04:49]} Qxa3 {[%emt 0:06:54]} 23. Rd3 {[%emt 0:09:47]} Rc4 {[%emt 0:02:15]} 24. Qf3 {[%emt 0:21:10]} Rf8 {[%emt 0:01:43]} 25. Qe3 {[%emt 0:01:01]} Re4 {[%emt 0:01:07]} 26. Qc1 {[%emt 0:00:04]} Qxc1 {[%emt 0:00:39]} 27. Nxc1 {[%emt 0:00:01]} Rc4 {[%emt 0:00:29]} 28. Ne2 {[%emt 0:02:29]} Nb4 {[%emt 0:03:51]} 29. Rxc3 {[%emt 0:00:07]} Rxc3 {[%emt 0:02:06]} 30. Nxc3 {[%emt 0:00:04]} Kb8 {[%emt 0:00:57]} 31. f4 {[%emt 0:05:42]} Rc8 {[%emt 0:01:09]} 32. Nd1 {[%emt 0:00:54]} Bb5 {[%emt 0:02:10]} 33. Rf2 {[%emt 0:00:14]} Nxc2 {[%emt 0:00:21]} 34. Rd2 {[%emt 0:03:10]} a5 {[%emt 0:01:42]} 35. f5 {[%emt 0:00:05]} a4 {[%emt 0:00:53]} 36. Kf2 {[%emt 0:00:59]} a3 {[%emt 0:00:45]} 37. Ne3 {[%emt 0:00:26]} a2 {[%emt 0:00:34]} 38. Rd1 {[%emt 0:00:59]} a1=Q {[%emt 0:00:44]} 39. Rxa1 {[%emt 0:00:01]} Nxa1 {[%emt 0:00:12]} 40. Nxd5 {[%emt 0:00:22]} exd5 {[%emt 0:01:00]} 41. e6+ {[%emt 0:30:03]} Ka8 {[%emt 0:30:19]} 42. f6 {[%emt 0:04:07]} Rc1 {[%emt 0:10:15]} 43. Bf4 {[%emt 0:00:00]} Rc8 {[%emt 0:00:00]} 44. f7 {[%emt 0:00:00]} Rf8 {[%emt 0:00:00]} 45. Bd6 {[%emt 0:00:00]} Bd7 {[%emt 0:00:00]} 46. Bxf8 {[%emt 0:00:00]} Bxe6 {[%emt 0:00:00]} 47. Bg7 {[%emt 0:00:00]} Bxf7 {[%emt 0:00:00]} 48. Bxa1 {[%emt 0:00:00]} Kb8 {[%emt 0:00:00]} 49. Kf3 {[%emt 0:00:00]} d4 {[%emt 0:00:00]} 50. Kf4 {[%emt 0:00:00]} Kc7 {[%emt 0:00:00]} 51. Kf5 {[%emt 0:04:47]} Kd6 {[%emt 0:00:00]} 52. Bxd4 {[%emt 0:00:52]} Bd5 {[%emt 0:00:00]} 53. g4 {[%emt 0:00:07]} Be6+ {[%emt 0:00:00]} 54. Kg5 {[%emt 0:00:42]} Ke7 {[%emt 0:00:00]} 55. Kh5 {[%emt 0:00:38]} Kf7 {[%emt 0:00:00]} 56. h4 {[%emt 0:00:55]} Bd5 {[%emt 0:00:00]} 57. Kh6 {[%emt 0:00:42]} Ke6 {[%emt 0:00:00]} 58. g5 {[%emt 0:01:20]} Kf5 {[%emt 0:00:00]} 59. h5 {[%emt 0:00:38]} b5 {[%emt 0:00:00]} 60. Bc3 {[%emt 0:00:17]} Bc4 {[%emt 0:00:00]} 61. Bd2 {[%emt 0:00:48]} Kg4 {[%emt 0:00:00]} 62. g6 {[%emt 0:00:26]} Bd5 {[%emt 0:00:00]} 63. g7 {[%emt 0:00:34]} Bf7 {[%emt 0:05:54]} 64. Be1 {[%emt 0:00:14]} Bc4 {[%emt 0:01:17]} 65. Bb4 {[%emt 0:01:01]} Bf7 {[%emt 0:02:29]} 66. Bd2 {[%emt 0:00:08]} Bd5 {[%emt 0:01:27]} 67. Kg6 {[%emt 0:00:24]} Be4+ {[%emt 0:01:21]} 68. Kf6 {[%emt 0:00:10]} Bh7 {[%emt 0:00:38]} 69. h6 {[%emt 0:00:03]} Kh5 {[%emt 0:00:26]} 70. g8=Q {[%emt 0:00:51]} Bxg8 {[%emt 0:00:11]} 71. Kg7 {[%emt 0:00:04]} 1/2-1/2

[Event "Prague Open 2024"]
[Site "Prague"]
[Date "2024.01.06"]
[Round "3.10"]
[White "Soucek, Jan"]
[Black "Tobak, Mikhail"]
[Result "0-1"]
[ECO "A43"]
[WhiteElo "2038"]
[BlackElo "2288"]
[Annotator "RC"]
[PlyCount "86"]
[EventDate "2024.01.02"]
[EventType "swiss"]
[EventCountry "CZE"]
[SourceTitle "playchess.com"]
[Source "ChessBase"]
[SourceQuality "1"]
[TimeControl "40/5400+30:1800+30"]

1. d4 {[%emt 0:00:07]} c5 {[%emt 0:00:28]} 2. d5 {[%emt 0:01:10]} g6 {[%emt 0:00:10]} 3. e4 {[%emt 0:02:33]} Bg7 {[%emt 0:00:13]} 4. Nc3 {[%emt 0:01:05]} d6 {[%emt 0:00:27]} 5. Nf3 {[%emt 0:01:15]} Nf6 {[%emt 0:00:31]} 6. Bb5+ {[%emt 0:08:54]} Bd7 {[%emt 0:06:42]} 7. Bxd7+ {[%emt 0:02:01]} Qxd7 {[%emt 0:03:21]} 8. O-O {[%emt 0:03:28]} b5 {[%emt 0:03:38]} 9. e5 {[%emt 0:04:08]} dxe5 {[%emt 0:00:44]} 10. Nxe5 {[%emt 0:01:00]} Qb7 {[%emt 0:00:12]} 11. Qf3 {[%emt 0:19:58]} O-O {[%emt 0:05:47]} 12. Rd1 {[%emt 0:08:32]} Na6 {[%emt 0:12:43]} 13. Be3 {[%emt 0:03:50]} Rad8 {[%emt 0:04:52]} 14. d6 {[%emt 0:16:32]} Qxf3 {[%emt 0:01:00]} 15. Nxf3 {[%emt 0:00:09]} exd6 {[%emt 0:01:10]} 16. Nxb5 {[%emt 0:01:04]} Nb4 {[%emt 0:04:14]} 17. Bf4 {[%emt 0:02:41]} a6 {[%emt 0:06:35]} 18. Nxd6 {[%emt 0:06:44]} Nfd5 {[%emt 0:00:28]} 19. Nb7 {[%emt 0:00:45]} Bxb2 {[%emt 0:01:25]} 20. Rab1 {[%emt 0:08:31]} Nc3 {[%emt 0:04:30]} 21. Nxd8 {[%emt 0:05:23]} Nxb1 {[%emt 0:02:17]} 22. Nb7 {[%emt 0:00:52]} Nc3 {[%emt 0:00:30]} 23. Re1 {[%emt 0:00:13]} Nxc2 {[%emt 0:00:56]} 24. Re7 {[%emt 0:00:38]} Nd5 {[%emt 0:11:30]} 25. Re2 {[%emt 0:00:06]} Nxf4 {[%emt 0:03:39]} 26. Rxc2 {[%emt 0:00:04]} Ba3 {[%emt 0:00:08]} 27. g3 {[%emt 0:00:50]} Rb8 {[%emt 0:02:27]} 28. gxf4 {[%emt 0:01:26]} Rxb7 {[%emt 0:00:04]} 29. Rc3 {[%emt 0:00:29]} Bb4 {[%emt 0:01:13]} 30. Rc4 {[%emt 0:00:11]} f6 {[%emt 0:02:21]} 31. Kf1 {[%emt 0:00:47]} Kf7 {[%emt 0:00:12]} 32. Rc2 {[%emt 0:00:32]} Ke6 {[%emt 0:00:22]} 33. Nd2 {[%emt 0:00:30]} Bxd2 {[%emt 0:01:27]} 34. Rxd2 {[%emt 0:00:05]} Rb4 {[%emt 0:01:49]} 35. f5+ {[%emt 0:00:44]} gxf5 {[%emt 0:00:07]} 36. Ke2 {[%emt 0:00:40]} Re4+ {[%emt 0:00:25]} 37. Kf3 {[%emt 0:00:31]} c4 {[%emt 0:00:12]} 38. Rd8 {[%emt 0:00:30]} Ke5 {[%emt 0:00:40]} 39. a3 {[%emt 0:00:30]} c3 {[%emt 0:00:32]} 40. Rd7 {[%emt 0:00:29]} Rc4 {[%emt 0:00:45]} 41. Rd1 {[%emt 0:30:06]} c2 {[%emt 0:30:11]} 42. Rc1 {[%emt 0:00:05]} Kd4 {[%emt 0:00:06]} 43. Ke2 {[%emt 0:00:27]} Kc3 {[%emt 0:00:05]} 0-1

[Event "Prague Open 2024"]
[Site "Prague"]
[Date "2024.01.06"]
[Round "3.12"]
[White "Peglau, Charis"]
[Black "Xie, Felix"]
[Result "0-1"]
[ECO "A50"]
[WhiteElo "1984"]
[BlackElo "2249"]
[Annotator "RC"]
[PlyCount "92"]
[EventDate "2024.01.02"]
[EventType "swiss"]
[EventCountry "CZE"]
[SourceTitle "playchess.com"]
[Source "ChessBase"]
[SourceQuality "1"]
[TimeControl "40/5400+30:1800+30"]

1. d4 {[%emt 0:00:03]} Nf6 {[%emt 0:00:12]} 2. c4 {[%emt 0:00:05]} g6 {[%emt 0:00:05]} 3. f3 {[%emt 0:00:05]} e6 {[%emt 0:00:05]} 4. Nc3 {[%emt 0:02:28]} c5 {[%emt 0:00:07]} 5. d5 {[%emt 0:00:56]} d6 {[%emt 0:00:06]} 6. e4 {[%emt 0:00:54]} Bg7 {[%emt 0:00:05]} 7. Be3 {[%emt 0:02:42]} a6 {[%emt 0:01:08]} 8. dxe6 {[%emt 0:03:46]} Bxe6 {[%emt 0:07:08]} 9. Qd2 {[%emt 0:20:21]} O-O {[%emt 0:10:07]} 10. O-O-O {[%emt 0:16:07]} Qa5 {[%emt 0:05:08]} 11. Kb1 {[%emt 0:03:38]} Nc6 {[%emt 0:04:33]} 12. h4 {[%emt 0:09:30]} Rfd8 {[%emt 0:18:04]} 13. g4 {[%emt 0:05:50]} b5 {[%emt 0:03:10]} 14. Nd5 {[%emt 0:10:08]} Qxd2 {[%emt 0:08:04]} 15. Rxd2 {[%emt 0:00:17]} bxc4 {[%emt 0:00:30]} 16. Bxc4 {[%emt 0:01:31]} Ne5 {[%emt 0:10:13]} 17. Be2 {[%emt 0:04:46]} Nxd5 {[%emt 0:01:35]} 18. exd5 {[%emt 0:00:10]} Bd7 {[%emt 0:00:04]} 19. Bf4 {[%emt 0:08:11]} Bb5 {[%emt 0:03:13]} 20. Bxe5 {[%emt 0:02:08]} Bxe5 {[%emt 0:00:34]} 21. Bxb5 {[%emt 0:00:37]} axb5 {[%emt 0:00:05]} 22. Ne2 {[%emt 0:00:09]} Re8 {[%emt 0:00:36]} 23. f4 {[%emt 0:02:13]} Bg7 {[%emt 0:01:44]} 24. h5 {[%emt 0:01:59]} Re3 {[%emt 0:00:52]} 25. hxg6 {[%emt 0:02:10]} fxg6 {[%emt 0:02:04]} 26. Rf1 {[%emt 0:01:04]} Rae8 {[%emt 0:06:49]} 27. Rf2 {[%emt 0:00:20]} Kf7 {[%emt 0:00:08]} 28. Kc2 {[%emt 0:00:38]} R8e4 {[%emt 0:01:36]} 29. a3 {[%emt 0:01:13]} h5 {[%emt 0:01:52]} 30. gxh5 {[%emt 0:00:35]} gxh5 {[%emt 0:00:01]} 31. Nc3 {[%emt 0:00:50]} Bxc3 {[%emt 0:05:03]} 32. bxc3 {[%emt 0:00:02]} h4 {[%emt 0:00:08]} 33. Rd1 {[%emt 0:00:47]} Rc4 {[%emt 0:01:40]} 34. Rd3 {[%emt 0:00:09]} Rxd3 {[%emt 0:00:11]} 35. Kxd3 {[%emt 0:00:01]} Ra4 {[%emt 0:00:01]} 36. Rb2 {[%emt 0:00:49]} Ra5 {[%emt 0:10:07]} 37. Ke4 {[%emt 0:01:06]} Kf6 {[%emt 0:00:17]} 38. Kf3 {[%emt 0:00:35]} Kf5 {[%emt 0:00:14]} 39. Rh2 {[%emt 0:00:34]} Rxa3 {[%emt 0:00:09]} 40. Rxh4 {[%emt 0:00:04]} Rxc3+ {[%emt 0:00:09]} 41. Ke2 {[%emt 0:30:17]} Ke4 {[%emt 0:30:19]} 42. Rh6 {[%emt 0:00:00]} Kxd5 {[%emt 0:00:00]} 43. f5 {[%emt 0:00:00]} Rg3 {[%emt 0:00:00]} 44. f6 {[%emt 0:00:00]} Rg8 {[%emt 0:00:00]} 45. Kd3 {[%emt 0:00:00]} Rf8 {[%emt 0:00:00]} 46. Ke3 {[%emt 0:00:00]} Ke5 {[%emt 0:00:00]} 0-1

[Event "Prague Open 2024"]
[Site "Prague"]
[Date "2024.01.06"]
[Round "3.13"]
[White "Dushatov, Timur"]
[Black "Eliseev, Sergey"]
[Result "1/2-1/2"]
[ECO "B50"]
[WhiteElo "1976"]
[BlackElo "2232"]
[Annotator "RC"]
[PlyCount "119"]
[EventDate "2024.01.02"]
[EventType "swiss"]
[EventCountry "CZE"]
[SourceTitle "playchess.com"]
[Source "ChessBase"]
[SourceQuality "1"]
[TimeControl "40/5400+30:1800+30"]

1. e4 {[%emt 0:00:05]} c5 {[%emt 0:02:39]} 2. Nf3 {[%emt 0:00:22]} d6 {[%emt 0:00:05]} 3. c3 {[%emt 0:00:06]} Nf6 {[%emt 0:01:42]} 4. h3 {[%emt 0:00:05]} Nc6 {[%emt 0:02:25]} 5. Bd3 {[%emt 0:00:07]} e6 {[%emt 0:03:39]} 6. Bc2 {[%emt 0:04:21]} Be7 {[%emt 0:03:36]} 7. d4 {[%emt 0:03:28]} O-O {[%emt 0:05:01]} 8. O-O {[%emt 0:01:53]} cxd4 {[%emt 0:03:48]} 9. cxd4 {[%emt 0:00:29]} Nb4 {[%emt 0:00:54]} 10. Nc3 {[%emt 0:02:24]} Nxc2 {[%emt 0:00:26]} 11. Qxc2 {[%emt 0:00:05]} h6 {[%emt 0:15:07]} 12. Bf4 {[%emt 0:00:37]} b6 {[%emt 0:01:33]} 13. Rad1 {[%emt 0:06:26]} Bb7 {[%emt 0:00:49]} 14. Nd2 {[%emt 0:02:57]} Qc7 {[%emt 0:14:52]} 15. Qb3 {[%emt 0:03:41]} Rad8 {[%emt 0:06:36]} 16. Nb5 {[%emt 0:08:30]} Qb8 {[%emt 0:00:13]} 17. Rfe1 {[%emt 0:02:49]} a6 {[%emt 0:05:52]} 18. Nc3 {[%emt 0:01:39]} b5 {[%emt 0:01:04]} 19. a4 {[%emt 0:03:40]} Bc6 {[%emt 0:03:12]} 20. d5 {[%emt 0:01:22]} Bd7 {[%emt 0:00:23]} 21. dxe6 {[%emt 0:04:05]} fxe6 {[%emt 0:04:48]} 22. axb5 {[%emt 0:00:45]} Nh5 {[%emt 0:03:32]} 23. Be3 {[%emt 0:06:20]} axb5 {[%emt 0:00:10]} 24. Nd5 {[%emt 0:01:43]} Bg5 {[%emt 0:03:54]} 25. Bxg5 {[%emt 0:01:57]} hxg5 {[%emt 0:00:01]} 26. Ne7+ {[%emt 0:02:13]} Kf7 {[%emt 0:00:10]} 27. Nf5 {[%emt 0:00:10]} Kg6 {[%emt 0:02:32]} 28. Nd4 {[%emt 0:00:36]} Nf4 {[%emt 0:03:29]} 29. Qg3 {[%emt 0:01:20]} Nh5 {[%emt 0:02:57]} 30. Qe3 {[%emt 0:00:24]} Nf4 {[%emt 0:01:13]} 31. Qg3 {[%emt 0:00:58]} Nh5 {[%emt 0:00:21]} 32. Qe3 {[%emt 0:00:07]} Nf4 {[%emt 0:00:54]} 33. e5 {[%emt 0:03:36]} d5 {[%emt 0:01:21]} 34. b4 {[%emt 0:01:59]} Rh8 {[%emt 0:01:14]} 35. N2b3 {[%emt 0:00:39]} Rdf8 {[%emt 0:00:43]} 36. Nc5 {[%emt 0:00:27]} Qd8 {[%emt 0:00:30]} 37. Ra1 {[%emt 0:00:48]} Rh6 {[%emt 0:03:34]} 38. Ra7 {[%emt 0:01:39]} Bc8 {[%emt 0:00:01]} 39. Qg3 {[%emt 0:03:18]} Rfh8 {[%emt 0:01:15]} 40. Qc3 {[%emt 0:07:16]} Kh7 {[%emt 0:02:10]} 41. Qc2+ {[%emt 0:33:39]} Rg6 {[%emt 0:04:44]} 42. g3 {[%emt 0:00:00]} Nxh3+ {[%emt 0:04:05]} 43. Kg2 {[%emt 0:00:00]} Qb6 {[%emt 0:04:19]} 44. Re7 {[%emt 0:00:00]} Qd8 {[%emt 0:03:13]} 45. Nc6 {[%emt 0:00:00]} Qf8 {[%emt 0:04:29]} 46. Nxe6 {[%emt 0:00:00]} Qxf2+ {[%emt 0:01:28]} 47. Qxf2 {[%emt 0:00:00]} Nxf2 {[%emt 0:00:02]} 48. Kxf2 {[%emt 0:00:00]} Rxe6 {[%emt 0:00:47]} 49. Rh1+ {[%emt 0:00:00]} Rh6 {[%emt 0:00:38]} 50. Rxh6+ {[%emt 0:00:00]} Kxh6 {[%emt 0:00:00]} 51. Nd4 {[%emt 0:00:00]} Kg6 {[%emt 0:01:34]} 52. Nxb5 {[%emt 0:00:00]} Rh2+ {[%emt 0:02:18]} 53. Ke3 {[%emt 0:00:00]} Rb2 {[%emt 0:02:29]} 54. Nd6 {[%emt 0:00:00]} Ba6 {[%emt 0:00:52]} 55. Ra7 {[%emt 0:00:00]} Bf1 {[%emt 0:00:29]} 56. Rb7 {[%emt 0:00:00]} Re2+ {[%emt 0:02:29]} 57. Kd4 {[%emt 0:00:00]} Rd2+ {[%emt 0:00:01]} 58. Ke3 {[%emt 0:00:00]} Re2+ {[%emt 0:00:04]} 59. Kd4 {[%emt 0:00:00]} Rd2+ {[%emt 0:00:01]} 60. Kc5 {[%emt 0:00:00]} 1/2-1/2

[Event "Prague Open 2024"]
[Site "Prague"]
[Date "2024.01.06"]
[Round "3.14"]
[White "Stanojevic, Ilija"]
[Black "Elashvili, Giorgi"]
[Result "1/2-1/2"]
[ECO "E62"]
[WhiteElo "2206"]
[BlackElo "1942"]
[Annotator "RC"]
[PlyCount "59"]
[EventDate "2024.01.02"]
[EventType "swiss"]
[EventCountry "CZE"]
[SourceTitle "playchess.com"]
[Source "ChessBase"]
[SourceQuality "1"]
[TimeControl "40/5400+30:1800+30"]

1. d4 {[%emt 0:01:57]} Nf6 {[%emt 0:01:08]} 2. c4 {[%emt 0:00:16]} g6 {[%emt 0:01:34]} 3. g3 {[%emt 0:00:18]} Bg7 {[%emt 0:00:17]} 4. Bg2 {[%emt 0:00:05]} O-O {[%emt 0:00:53]} 5. Nc3 {[%emt 0:00:05]} d6 {[%emt 0:00:25]} 6. Nf3 {[%emt 0:00:16]} Nc6 {[%emt 0:01:00]} 7. O-O {[%emt 0:00:52]} e5 {[%emt 0:01:27]} 8. dxe5 {[%emt 0:00:19]} dxe5 {[%emt 0:00:15]} 9. Bg5 {[%emt 0:00:22]} Be6 {[%emt 0:00:37]} 10. Qa4 {[%emt 0:00:29]} Qc8 {[%emt 0:00:58]} 11. Nd2 {[%emt 0:00:44]} Bd7 {[%emt 0:07:39]} 12. Rad1 {[%emt 0:00:17]} Nd4 {[%emt 0:02:47]} 13. Qa3 {[%emt 0:00:23]} Bg4 {[%emt 0:10:54]} 14. f3 {[%emt 0:10:43]} Bh3 {[%emt 0:08:50]} 15. e3 {[%emt 0:04:15]} Bxg2 {[%emt 0:00:15]} 16. Kxg2 {[%emt 0:00:05]} Ne6 {[%emt 0:20:43]} 17. Bxf6 {[%emt 0:01:17]} Bxf6 {[%emt 0:00:08]} 18. Nd5 {[%emt 0:02:50]} Bd8 {[%emt 0:00:24]} 19. f4 {[%emt 0:04:21]} exf4 {[%emt 0:09:17]} 20. exf4 {[%emt 0:00:12]} c6 {[%emt 0:00:23]} 21. Ne7+ {[%emt 0:04:08]} Bxe7 {[%emt 0:00:08]} 22. Qxe7 {[%emt 0:00:07]} Re8 {[%emt 0:02:57]} 23. Qd6 {[%emt 0:02:10]} Ng7 {[%emt 0:01:00]} 24. Rfe1 {[%emt 0:04:04]} Qf5 {[%emt 0:06:16]} 25. Nf3 {[%emt 0:07:41]} Rxe1 {[%emt 0:00:27]} 26. Rxe1 {[%emt 0:01:14]} Qc2+ {[%emt 0:00:09]} 27. Qd2 {[%emt 0:05:54]} Qxc4 {[%emt 0:00:27]} 28. b3 {[%emt 0:01:21]} Qb5 {[%emt 0:04:06]} 29. Qd7 {[%emt 0:05:03]} Ne6 {[%emt 0:13:02]} 30. Rxe6 {[%emt 0:21:01]} 1/2-1/2

[Event "Prague Open 2024"]
[Site "Prague"]
[Date "2024.01.06"]
[Round "3.15"]
[White "Mohylnyi, Stepan"]
[Black "Tolmacevs, Artjoms"]
[Result "1/2-1/2"]
[ECO "B52"]
[WhiteElo "2180"]
[BlackElo "1928"]
[Annotator "RC"]
[PlyCount "91"]
[EventDate "2024.01.02"]
[EventType "swiss"]
[EventCountry "CZE"]
[SourceTitle "playchess.com"]
[Source "ChessBase"]
[SourceQuality "1"]
[TimeControl "40/5400+30:1800+30"]

1. e4 {[%emt 0:00:03]} c5 {[%emt 0:00:04]} 2. Nf3 {[%emt 0:00:02]} d6 {[%emt 0:00:05]} 3. Bb5+ {[%emt 0:00:03]} Bd7 {[%emt 0:00:04]} 4. Bxd7+ {[%emt 0:00:07]} Qxd7 {[%emt 0:00:08]} 5. d4 {[%emt 0:00:06]} cxd4 {[%emt 0:00:12]} 6. Qxd4 {[%emt 0:00:06]} Nc6 {[%emt 0:00:20]} 7. Qd3 {[%emt 0:00:08]} Nf6 {[%emt 0:00:18]} 8. O-O {[%emt 0:00:31]} d5 {[%emt 0:00:08]} 9. exd5 {[%emt 0:06:29]} Qxd5 {[%emt 0:00:15]} 10. Qxd5 {[%emt 0:03:05]} Nxd5 {[%emt 0:00:09]} 11. c3 {[%emt 0:00:03]} e6 {[%emt 0:10:02]} 12. c4 {[%emt 0:11:25]} Ndb4 {[%emt 0:05:17]} 13. Nc3 {[%emt 0:00:58]} O-O-O {[%emt 0:03:04]} 14. a3 {[%emt 0:06:53]} Nd3 {[%emt 0:00:55]} 15. b4 {[%emt 0:01:46]} a5 {[%emt 0:09:07]} 16. b5 {[%emt 0:01:23]} Nce5 {[%emt 0:09:53]} 17. Nxe5 {[%emt 0:05:21]} Nxe5 {[%emt 0:00:01]} 18. Bf4 {[%emt 0:07:32]} Nd3 {[%emt 0:09:23]} 19. Be3 {[%emt 0:10:41]} Bc5 {[%emt 0:05:55]} 20. Ne4 {[%emt 0:07:24]} Bxe3 {[%emt 0:06:05]} 21. fxe3 {[%emt 0:00:07]} f6 {[%emt 0:00:05]} 22. Ra2 {[%emt 0:13:16]} b6 {[%emt 0:01:36]} 23. Rc2 {[%emt 0:08:24]} Nc5 {[%emt 0:04:14]} 24. Nxc5 {[%emt 0:00:09]} bxc5 {[%emt 0:00:02]} 25. Rc3 {[%emt 0:00:06]} Kc7 {[%emt 0:02:14]} 26. h4 {[%emt 0:04:59]} Rd2 {[%emt 0:08:11]} 27. h5 {[%emt 0:00:29]} Rf8 {[%emt 0:03:28]} 28. e4 {[%emt 0:02:55]} Rd4 {[%emt 0:00:40]} 29. Re1 {[%emt 0:00:22]} e5 {[%emt 0:01:04]} 30. Ree3 {[%emt 0:01:33]} a4 {[%emt 0:00:46]} 31. Re2 {[%emt 0:05:44]} Rfd8 {[%emt 0:00:36]} 32. Kf2 {[%emt 0:00:28]} Rd1 {[%emt 0:01:42]} 33. Rh3 {[%emt 0:00:59]} Rc1 {[%emt 0:00:22]} 34. h6 {[%emt 0:00:17]} g6 {[%emt 0:00:10]} 35. Rf3 {[%emt 0:00:12]} Rd6 {[%emt 0:00:49]} 36. Kg3 {[%emt 0:01:09]} Kd7 {[%emt 0:00:33]} 37. Ref2 {[%emt 0:00:19]} Ke7 {[%emt 0:00:05]} 38. Rb2 {[%emt 0:00:08]} Rb6 {[%emt 0:00:07]} 39. Rd3 {[%emt 0:01:36]} Rxc4 {[%emt 0:00:35]} 40. Kf3 {[%emt 0:02:04]} Rd4 {[%emt 0:08:24]} 41. Rc3 {[%emt 0:30:44]} Kd6 {[%emt 0:32:05]} 42. g4 {[%emt 0:00:00]} Rd1 {[%emt 0:00:00]} 43. Ke2 {[%emt 0:00:00]} Rd4 {[%emt 0:00:00]} 44. Ke3 {[%emt 0:00:00]} Rb7 {[%emt 0:08:35]} 45. Rb1 {[%emt 0:00:00]} Rb6 {[%emt 0:04:06]} 46. Rb2 1/2-1/2

[Event "Prague Open 2024"]
[Site "Prague"]
[Date "2024.01.06"]
[Round "3.16"]
[White "Rakovsky, Jakub"]
[Black "Lee, Hyuk"]
[Result "1-0"]
[ECO "C42"]
[WhiteElo "2157"]
[BlackElo "1924"]
[Annotator "RC"]
[PlyCount "57"]
[EventDate "2024.01.02"]
[EventType "swiss"]
[EventCountry "CZE"]
[SourceTitle "playchess.com"]
[Source "ChessBase"]
[SourceQuality "1"]
[TimeControl "40/5400+30:1800+30"]

1. e4 {[%emt 0:00:05]} e5 {[%emt 0:01:57]} 2. Nf3 {[%emt 0:00:44]} Nf6 {[%emt 0:00:14]} 3. Nc3 {[%emt 0:02:12]} Bb4 {[%emt 0:00:09]} 4. Nxe5 {[%emt 0:07:00]} O-O {[%emt 0:00:16]} 5. Be2 {[%emt 0:05:23]} Re8 {[%emt 0:00:09]} 6. Nf3 {[%emt 0:02:55]} Bxc3 {[%emt 0:00:58]} 7. dxc3 {[%emt 0:00:35]} Nxe4 {[%emt 0:00:09]} 8. O-O {[%emt 0:00:56]} d6 {[%emt 0:00:28]} 9. Be3 {[%emt 0:02:55]} Nd7 {[%emt 0:00:42]} 10. Bd3 {[%emt 0:05:29]} Ndf6 {[%emt 0:00:46]} 11. h3 {[%emt 0:04:44]} Bd7 {[%emt 0:03:01]} 12. Re1 {[%emt 0:01:30]} b6 {[%emt 0:07:32]} 13. a3 {[%emt 0:08:22]} Qc8 {[%emt 0:02:03]} 14. Kh2 {[%emt 0:07:32]} Qb7 {[%emt 0:01:16]} 15. Qe2 {[%emt 0:11:33]} a6 {[%emt 0:03:30]} 16. Qf1 {[%emt 0:01:42]} c5 {[%emt 0:01:34]} 17. c4 {[%emt 0:04:25]} Rad8 {[%emt 0:03:41]} 18. Ng5 {[%emt 0:06:30]} Bc6 {[%emt 0:05:36]} 19. f3 {[%emt 0:01:23]} Nxg5 {[%emt 0:10:00]} 20. Bxg5 {[%emt 0:00:17]} Kh8 {[%emt 0:11:08]} 21. Qf2 {[%emt 0:01:40]} Re5 {[%emt 0:11:43]} 22. Bxf6 {[%emt 0:06:52]} gxf6 {[%emt 0:00:25]} 23. Qh4 {[%emt 0:00:07]} Kg7 {[%emt 0:01:07]} 24. Qxh7+ {[%emt 0:00:07]} Kf8 {[%emt 0:00:07]} 25. f4 {[%emt 0:00:41]} Re6 {[%emt 0:07:40]} 26. Rxe6 {[%emt 0:00:35]} fxe6 {[%emt 0:00:08]} 27. Qh8+ {[%emt 0:00:18]} Ke7 {[%emt 0:00:10]} 28. Qg7+ {[%emt 0:00:06]} Ke8 {[%emt 0:00:06]} 29. Bg6+ {[%emt 0:00:08]} 1-0